bitfinex/quotes_BTCUSD_20250211
["timestamp","ask_amount","ask_price","bid_price","bid_amount"]
[1739241221444,0.01087121,97615.0,97603.0,0.204911]
[1739241221682,0.01087121,97615.0,97604.0,0.153682]
[1739241221889,0.01087121,97615.0,97605.0,0.153679]
[1739241222301,0.0184725,97615.0,97605.0,0.153679]
[1739241222434,0.01899639,97614.0,97605.0,0.153679]
[1739241222642,0.0108429,97613.0,97600.0,0.0004]
[1739241222872,0.02960024,97613.0,97606.0,0.153678]
[1739241223096,0.0108429,97613.0,97606.0,0.153678]
[1739241223432,0.01899639,97612.0,97606.0,0.153678]
[1739241223869,0.01084268,97611.0,97606.0,0.153678]
[1739241224517,0.01084268,97611.0,97602.0,0.204913]
[1739241224518,0.01084268,97611.0,97608.0,0.153675]
[1739241224727,0.09649639,97612.0,97606.0,0.153677]
[1739241224937,0.01899639,97612.0,97600.0,0.0004]
[1739241225142,0.01084268,97611.0,97605.0,0.15368]
[1739241225324,0.01484268,97611.0,97605.0,0.15368]
[1739241225532,0.32266039,97616.0,97605.0,0.15368]
[1739241225735,0.01084258,97610.0,97606.0,0.153678]
[1739241225946,0.004,97611.0,97609.0,0.153674]
[1739241226162,0.006,97612.0,97611.0,0.153671]
[1739241226370,0.004,97611.0,97606.0,0.204904]
[1739241226575,0.004,97611.0,97610.0,0.153672]
[1739241226996,0.004,97611.0,97610.0,0.15469633]
[1739241227203,0.004,97611.0,97610.0,0.153672]
[1739241227568,0.003,97612.0,97610.0,0.15469633]
[1739241227784,0.003,97612.0,97610.0,0.153672]
[1739241228636,0.00013281,97618.0,97612.0,0.153668]
[1739241229040,0.01727812,97617.0,97612.0,0.153668]
[1739241229662,0.01727812,97617.0,97613.0,0.153668]
[1739241229864,0.00013281,97618.0,97613.0,0.153668]
[1739241230995,0.00213281,97618.0,97607.0,0.204903]
[1739241231198,0.00013281,97618.0,97612.0,0.153668]
[1739241231532,0.01084333,97617.0,97612.0,0.153668]
[1739241231739,0.01084333,97617.0,97613.0,0.153667]
[1739241231937,0.00213281,97618.0,97616.0,0.153663]
[1739241232184,0.00013281,97618.0,97616.0,0.153663]
[1739241232359,0.00013281,97618.0,97612.0,0.153668]
[1739241232565,0.00213281,97618.0,97610.0,0.204895]
[1739241232862,0.01084333,97617.0,97613.0,0.153667]
[1739241233273,0.01836245,97616.0,97605.0,0.0001067]
[1739241233487,0.01084333,97617.0,97607.0,0.153676]
[1739241233698,0.153666,97614.0,97605.0,0.0001067]
[1739241233899,0.16451212,97616.0,97605.0,0.0001067]
[1739241234136,0.01084801,97615.0,97605.0,0.0001067]
[1739241234524,0.02178588,97614.0,97605.0,0.0001067]
[1739241234729,0.0108478,97613.0,97605.0,0.0001067]
[1739241235389,0.153665,97615.0,97605.0,0.1537867]
[1739241235588,0.00013281,97618.0,97613.0,0.153667]
[1739241237190,0.00113281,97618.0,97613.0,0.153667]
[1739241237360,0.00113281,97618.0,97610.0,0.204897]
[1739241237569,0.00113281,97618.0,97611.0,0.00102431]
[1739241237775,0.00113281,97618.0,97617.0,0.153661]
[1739241238065,0.0107999,97617.0,97616.0,0.153663]
[1739241238224,0.00413281,97618.0,97617.0,0.153661]
[1739241238428,0.00413281,97618.0,97617.0,0.15468525]
[1739241238769,0.00113281,97618.0,97617.0,0.15468525]
[1739241238991,0.00013281,97618.0,97617.0,0.15468525]
[1739241239344,0.00113281,97618.0,97617.0,0.15468525]
[1739241239553,0.00413281,97618.0,97617.0,0.153661]
[1739241239705,0.00313281,97618.0,97617.0,0.153661]
[1739241240634,0.00313281,97618.0,97617.0,0.15468524]
[1739241240868,0.00013281,97618.0,97617.0,0.15468524]
[1739241241317,0.00213281,97618.0,97617.0,0.15468524]
[1739241244486,0.00213281,97618.0,97617.0,0.153661]
[1739241244665,0.00235689,97618.0,97617.0,0.153661]
[1739241248139,0.00235689,97618.0,97601.0,0.204915]
[1739241248347,0.00235689,97618.0,97612.0,0.153668]
[1739241248847,0.01067735,97617.0,97610.0,0.153672]
[1739241249050,0.01067735,97617.0,97604.0,0.204908]
[1739241249282,0.01067735,97617.0,97604.0,0.20593233]
[1739241249488,0.00235689,97618.0,97612.0,0.153669]
[1739241249822,0.01067735,97617.0,97612.0,0.153669]
[1739241250021,0.0174284,97616.0,97612.0,0.153669]
[1739241250447,0.01067713,97615.0,97614.0,0.153666]
[1739241250626,0.01067713,97615.0,97601.0,0.204915]
[1739241250831,0.00235689,97618.0,97613.0,0.153667]
[1739241251060,0.00035689,97618.0,97613.0,0.153667]
[1739241251257,0.01067735,97617.0,97613.0,0.153667]
[1739241251484,0.002,97616.0,97612.0,0.204891]
[1739241251680,0.01067735,97617.0,97608.0,0.153675]
[1739241251944,0.15401689,97618.0,97607.0,0.204903]
[1739241251945,0.00035689,97618.0,97607.0,0.204903]
[1739241252118,0.01067735,97617.0,97610.0,0.153672]
[1739241252331,0.0182721,97617.0,97610.0,0.153672]
[1739241252478,0.0202721,97617.0,97605.0,0.0001067]
[1739241252889,0.0202721,97617.0,97606.0,0.153679]
[1739241253155,0.0202721,97617.0,97605.0,0.00113107]
[1739241253307,0.0202721,97617.0,97613.0,0.153668]
[1739241253714,0.0202721,97617.0,97615.0,0.153663]
[1739241253919,0.00759475,97617.0,97614.0,0.153666]
[1739241254191,0.00759475,97617.0,97616.0,0.153663]
[1739241254753,0.00959475,97617.0,97616.0,0.153663]
[1739241254958,0.00759475,97617.0,97616.0,0.153663]
[1739241255303,0.00759475,97617.0,97605.0,0.0001067]
[1739241255304,0.002,97617.0,97615.0,0.00102433]
[1739241255496,0.002,97617.0,97616.0,0.153663]
[1739241255939,0.002,97617.0,97614.0,0.153665]
[1739241256146,0.002,97617.0,97616.0,0.153663]
[1739241256357,0.002,97617.0,97614.0,0.153665]
[1739241256995,0.00035689,97618.0,97608.0,0.00102433]
[1739241257200,0.00035689,97618.0,97617.0,0.153661]
[1739241257408,0.00035689,97618.0,97617.0,0.15468524]
[1739241258028,0.00035689,97618.0,97617.0,0.153661]
[1739241258742,0.00235689,97618.0,97617.0,0.153661]
[1739241258942,0.00235689,97618.0,97617.0,0.15468524]
[1739241259561,0.00235689,97618.0,97617.0,0.153661]
[1739241260039,0.00235689,97618.0,97617.0,0.15468524]
[1739241261799,0.00235689,97618.0,97617.0,0.153661]
[1739241262517,0.00235689,97618.0,97617.0,0.15468522]
[1739241262721,0.00235689,97618.0,97617.0,0.25718887]
[1739241262926,0.00235689,97618.0,97617.0,0.25616465]
[1739241263252,0.00235689,97618.0,97617.0,0.28916465]
[1739241263696,0.00235689,97618.0,97617.0,0.37066465]
[1739241263904,0.00022408,97649.0,97648.0,0.153612]
[1739241264119,0.00035751,97649.0,97648.0,0.153612]
[1739241264327,0.01037311,97649.0,97648.0,0.153612]
[1739241264540,0.00035751,97649.0,97648.0,0.153612]
[1739241264919,0.01038203,97649.0,97648.0,0.153612]
[1739241265688,0.01238203,97649.0,97648.0,0.153612]
[1739241267078,0.00235751,97649.0,97648.0,0.153612]
[1739241267257,0.00235751,97649.0,97648.0,0.15463598]
[1739241267460,0.00235751,97649.0,97648.0,0.153612]
[1739241268515,0.08385751,97649.0,97630.0,0.08959911]
[1739241268894,0.01002441,97648.0,97631.0,0.00102407]
[1739241269096,0.02515301,97648.0,97640.0,0.153625]
[1739241269309,0.01002441,97648.0,97631.0,0.00102407]
[1739241269477,0.01002441,97648.0,97641.0,0.153623]
[1739241269684,0.08385751,97649.0,97642.0,0.153621]
[1739241270117,0.01003438,97648.0,97642.0,0.153621]
[1739241270340,0.08185751,97649.0,97630.0,0.08959911]
[1739241270546,0.01003427,97647.0,97623.0,0.00102414]
[1739241270752,0.14063459,97646.0,97634.0,0.153634]
[1739241271374,0.14063459,97646.0,97638.0,0.153628]
[1739241271590,0.14063459,97646.0,97625.0,0.204865]
[1739241271797,0.14063459,97646.0,97630.0,0.08959911]
[1739241271981,0.14063459,97646.0,97636.0,0.08959911]
[1739241272416,0.0501,97646.0,97643.0,0.153619]
[1739241272548,0.0501,97646.0,97643.0,0.15362]
[1739241272729,0.01003406,97645.0,97643.0,0.15362]
[1739241272930,0.01003406,97645.0,97630.0,0.19210276]
[1739241273155,0.01003406,97645.0,97644.0,0.153619]
[1739241273576,0.01003406,97645.0,97642.0,0.204828]
[1739241273793,0.01003406,97645.0,97643.0,0.153619]
[1739241274173,0.01003406,97645.0,97644.0,0.153619]
[1739241274772,0.01003406,97645.0,97644.0,0.154643]
[1739241275014,0.00035751,97649.0,97648.0,0.153612]
[1739241276743,0.00035751,97649.0,97639.0,0.08959911]
[1739241276897,0.00035751,97649.0,97613.0,0.0375]
[1739241276898,0.0815,97648.0,97631.0,0.153639]
[1739241277101,0.01004826,97647.0,97630.0,0.08959911]
[1739241277349,0.01004826,97647.0,97639.0,0.153626]
[1739241277494,0.0815,97648.0,97640.0,0.153625]
[1739241277698,0.01004826,97647.0,97640.0,0.153625]
[1739241278316,0.01004826,97647.0,97637.0,0.20484]
[1739241278559,0.001,97647.0,97640.0,0.153625]
[1739241279171,0.002,97647.0,97640.0,0.153625]
[1739241279375,0.0491,97646.0,97621.0,0.02071419]
[1739241279623,0.0491,97646.0,97630.0,0.08959911]
[1739241279816,0.01004815,97645.0,97634.0,0.153633]
[1739241280199,0.0491,97646.0,97634.0,0.153633]
[1739241280402,0.01004837,97644.0,97634.0,0.153633]
[1739241280579,0.01004847,97645.0,97634.0,0.153633]
[1739241280941,0.01004826,97643.0,97634.0,0.153633]
[1739241281126,0.01004858,97644.0,97634.0,0.153633]
[1739241281345,0.004,97645.0,97634.0,0.153633]
[1739241281528,0.01004847,97643.0,97634.0,0.153633]
[1739241281774,0.01004858,97644.0,97634.0,0.153633]
[1739241281966,0.01004858,97644.0,97620.0,0.08959911]
[1739241281967,0.0815,97641.0,97619.0,0.204878]
[1739241282174,0.153629,97638.0,97624.0,0.153649]
[1739241282399,0.1306,97637.0,97619.0,0.358536]
[1739241282604,0.14063964,97637.0,97625.0,0.153649]
[1739241282842,0.04746955,97636.0,97625.0,0.153649]
[1739241283059,0.20110155,97636.0,97618.0,0.0001067]
[1739241283270,0.153639,97631.0,97618.0,0.0001067]
[1739241283522,0.153636,97633.0,97618.0,0.1537647]
[1739241283735,0.01003288,97630.0,97618.0,0.0001067]
[1739241283921,0.0815,97629.0,97618.0,0.0001067]
[1739241284144,0.09152807,97629.0,97619.0,0.153657]
[1739241285039,0.09152807,97629.0,97618.0,0.0001067]
[1739241285267,0.09152807,97629.0,97619.0,0.204878]
[1739241285483,0.09252807,97629.0,97621.0,0.153654]
[1739241285717,0.0491,97628.0,97619.0,0.153657]
[1739241286164,0.01002753,97627.0,97619.0,0.153657]
[1739241287308,0.01002753,97627.0,97618.0,0.0001067]
[1739241287504,0.01002753,97627.0,97620.0,0.153656]
[1739241287730,0.01102753,97627.0,97621.0,0.153654]
[1739241287934,0.01102753,97627.0,97618.0,0.0001067]
[1739241288084,0.01102753,97627.0,97622.0,0.153653]
[1739241288286,0.01002753,97627.0,97622.0,0.153653]
[1739241288804,0.01102753,97627.0,97618.0,0.0001067]
[1739241289011,0.01102753,97627.0,97624.0,0.15365]
[1739241289305,0.01002753,97627.0,97624.0,0.15365]
[1739241289577,0.01002753,97627.0,97622.0,0.153652]
[1739241289800,0.01202753,97627.0,97622.0,0.153652]
[1739241289992,0.01102753,97627.0,97622.0,0.153652]
[1739241290197,0.001,97627.0,97618.0,0.0001067]
[1739241290402,0.002,97627.0,97622.0,0.153652]
[1739241290607,0.0100098,97626.0,97622.0,0.153652]
[1739241290816,0.0007945,97627.0,97622.0,0.153652]
[1739241291107,0.001,97627.0,97622.0,0.153652]
[1739241291303,0.002,97627.0,97622.0,0.153652]
[1739241291980,0.002,97627.0,97620.0,0.204876]
[1739241291981,0.001,97627.0,97623.0,0.153652]
[1739241292226,0.002,97627.0,97623.0,0.153652]
[1739241292432,0.02095546,97627.0,97623.0,0.153652]
[1739241292856,0.00984708,97626.0,97623.0,0.153652]
[1739241293035,0.00984708,97626.0,97622.0,0.153652]
[1739241293459,0.00984708,97626.0,97623.0,0.153652]
[1739241293881,0.00984708,97626.0,97624.0,0.15365]
[1739241294293,0.00984708,97626.0,97622.0,0.153652]
[1739241294510,0.00122408,97627.0,97618.0,0.0001067]
[1739241294939,0.00984676,97626.0,97625.0,0.153649]
[1739241295147,0.00984676,97626.0,97618.0,0.0001067]
[1739241295349,0.00984196,97625.0,97620.0,0.204876]
[1739241295502,0.00984196,97625.0,97623.0,0.153651]
[1739241295704,0.00122408,97627.0,97624.0,0.153649]
[1739241295910,0.00022408,97627.0,97618.0,0.0001067]
[1739241296158,0.00122408,97627.0,97623.0,0.153651]
[1739241296319,0.00984217,97626.0,97623.0,0.153651]
[1739241297268,0.00984217,97626.0,97625.0,0.153649]
[1739241297477,0.00984217,97626.0,97624.0,0.15365]
[1739241297687,0.00022408,97627.0,97623.0,0.204868]
[1739241298276,0.00122408,97627.0,97624.0,0.15365]
[1739241298814,0.0829,97625.0,97618.0,0.0001067]
[1739241299247,0.00984249,97624.0,97618.0,0.0001067]
[1739241299469,0.00984249,97624.0,97623.0,0.153652]
[1739241300857,0.01084249,97624.0,97623.0,0.25717992]
[1739241301094,0.01084249,97624.0,97623.0,0.25615565]
[1739241301265,0.00022408,97627.0,97626.0,0.153647]
[1739241301473,0.00022408,97627.0,97626.0,0.15467111]
[1739241302407,0.00122408,97627.0,97626.0,0.15467111]
[1739241302636,0.00122408,97627.0,97626.0,0.25717476]
[1739241302873,0.00122408,97627.0,97626.0,0.27915065]
[1739241303154,0.00122408,97627.0,97626.0,0.153647]
[1739241303603,0.00122408,97627.0,97626.0,0.15567116]
[1739241303831,0.00122408,97627.0,97626.0,0.15467116]
[1739241304066,0.00122408,97627.0,97626.0,0.15667116]
[1739241304296,0.00022408,97627.0,97626.0,0.15667116]
[1739241304502,0.00022408,97627.0,97626.0,0.15467116]
[1739241304698,0.00122408,97627.0,97626.0,0.16967116]
[1739241305037,0.00022408,97627.0,97626.0,0.15567116]
[1739241305238,0.00022408,97627.0,97626.0,0.25817481]
[1739241305438,0.00122408,97627.0,97626.0,0.26615065]
[1739241305664,0.00122408,97627.0,97626.0,0.29915065]
[1739241305936,0.00022408,97627.0,97626.0,0.37145065]
[1739241306235,0.00122408,97627.0,97626.0,0.38245065]
[1739241306475,0.00122408,97627.0,97626.0,0.38145065]
[1739241306933,0.00122408,97627.0,97626.0,0.38345065]
[1739241307106,0.00122408,97627.0,97626.0,0.38145065]
[1739241307519,0.00022408,97627.0,97626.0,0.37245065]
[1739241307721,0.00022408,97627.0,97626.0,0.38248519]
[1739241307966,0.00122408,97627.0,97626.0,0.39248519]
[1739241309534,0.00122408,97627.0,97626.0,0.58998519]
[1739241309535,8e-08,97627.0,97626.0,0.58998519]
[1739241310393,8e-08,97627.0,97626.0,1.47535813]
[1739241310613,8e-08,97627.0,97626.0,1.46735813]
[1739241311032,0.00022408,97647.0,97646.0,0.396016]
[1739241311333,0.00022408,97647.0,97646.0,0.52151965]
[1739241312572,0.00122408,97647.0,97646.0,0.53651965]
[1739241313409,0.00122408,97647.0,97646.0,0.54251965]
[1739241313615,0.00222408,97647.0,97646.0,0.54251965]
[1739241313865,0.00122408,97647.0,97646.0,0.52751965]
[1739241314074,0.00122408,97647.0,97646.0,0.54251965]
[1739241314224,0.00122408,97647.0,97646.0,0.53651965]
[1739241314647,0.00222408,97647.0,97646.0,0.55277805]
[1739241314838,0.00222408,97647.0,97646.0,0.54677805]
[1739241316409,0.00222408,97647.0,97646.0,0.56763524]
[1739241316766,0.00322408,97647.0,97646.0,0.57363524]
[1739241318249,0.00322408,97647.0,97646.0,0.49123524]
[1739241322007,0.00322408,97647.0,97646.0,0.50123524]
[1739241322257,0.00322408,97647.0,97646.0,1.03533524]
[1739241322744,5.9e-07,97649.0,97648.0,0.02]
[1739241322929,5.9e-07,97649.0,97648.0,0.45013938]
[1739241323146,5.9e-07,97649.0,97648.0,0.44911565]
[1739241323631,0.01170408,97654.0,97653.0,0.323605]
[1739241323885,0.01170408,97654.0,97653.0,0.44955313]
[1739241324825,0.01170408,97654.0,97653.0,0.99865313]
[1739241325067,0.01270408,97654.0,97653.0,0.99865313]
[1739241325313,0.01370408,97654.0,97653.0,1.00465313]
[1739241329795,0.01370408,97654.0,97653.0,1.32625313]
[1739241335456,0.01370408,97654.0,97653.0,1.30625313]
[1739241335718,0.01370408,97654.0,97653.0,0.78215313]
[1739241339063,0.01370408,97654.0,97653.0,0.79215313]
[1739241344532,8e-08,97654.0,97653.0,0.79215313]
[1739241344738,8e-08,97654.0,97653.0,0.78215313]
[1739241344954,8e-08,97654.0,97653.0,0.77215313]
[1739241347366,8e-08,97654.0,97653.0,0.59915313]
[1739241347522,0.08290008,97654.0,97653.0,0.17504948]
[1739241347724,0.13060008,97654.0,97653.0,0.17504948]
[1739241347929,0.1426046,97654.0,97653.0,0.17504948]
[1739241349083,0.1426046,97654.0,97653.0,0.16004948]
[1739241349446,0.1426046,97654.0,97653.0,0.17204948]
[1739241349858,0.14260452,97654.0,97653.0,0.15404948]
[1739241350032,0.14260452,97654.0,97653.0,0.15904948]
[1739241350626,0.14260452,97654.0,97653.0,0.15404948]
[1739241350802,0.14360452,97654.0,97653.0,0.15404948]
[1739241352280,0.14360452,97654.0,97653.0,0.00044448]
[1739241352500,0.14360452,97654.0,97653.0,0.15404948]
[1739241352702,0.1316,97654.0,97653.0,0.15404948]
[1739241353139,0.249641,97654.0,97653.0,0.00044448]
[1739241353343,0.153609,97650.0,97649.0,0.0001067]
[1739241353554,0.284209,97650.0,97649.0,0.0001067]
[1739241353684,0.29974132,97650.0,97649.0,0.0001067]
[1739241355072,0.33945474,97650.0,97649.0,0.0001067]
[1739241355658,0.30474132,97650.0,97649.0,0.0001067]
[1739241356059,0.25363597,97650.0,97627.0,0.0001067]
[1739241356262,0.10250365,97649.0,97629.0,0.153641]
[1739241356463,0.10250365,97649.0,97627.0,0.0001067]
[1739241356464,0.1306,97636.0,97627.0,0.0001067]
[1739241356666,0.1306,97636.0,97628.0,0.153643]
[1739241356875,0.0155302,97635.0,97628.0,0.153643]
[1739241357072,0.1236,97633.0,97628.0,0.153643]
[1739241357273,0.0784,97631.0,97629.0,0.153641]
[1739241357728,0.0155298,97630.0,97629.0,0.154641]
[1739241357928,0.0939298,97630.0,97629.0,0.154641]
[1739241358102,0.0784,97630.0,97629.0,0.154641]
[1739241358329,0.0939298,97630.0,97628.0,0.153643]
[1739241358533,0.0939298,97630.0,97627.0,0.0001067]
[1739241359037,0.0939298,97630.0,97628.0,0.153644]
[1739241360306,0.0784,97630.0,97628.0,0.153644]
[1739241360936,0.01552972,97629.0,97628.0,0.153644]
[1739241361141,0.0784,97629.0,97628.0,0.001]
[1739241361364,0.09392972,97629.0,97628.0,0.001]
[1739241361586,0.0784,97629.0,97627.0,0.1537517]
[1739241361977,0.01552964,97628.0,97627.0,0.1537517]
[1739241362215,0.01552964,97628.0,97627.0,0.0001067]
[1739241362216,0.15188964,97628.0,97627.0,0.0001067]
[1739241363066,0.25439329,97628.0,97627.0,0.0001067]
[1739241363969,0.25739329,97628.0,97627.0,0.0001067]
[1739241364416,0.24763329,97628.0,97627.0,0.0021067]
[1739241364624,0.25363329,97628.0,97627.0,0.0021067]
[1739241367586,0.40727729,97628.0,97627.0,0.0021067]
[1739241367824,0.15112964,97628.0,97627.0,0.0021067]
[1739241368060,0.15112964,97628.0,97627.0,0.1557527]
[1739241368915,0.02752964,97628.0,97627.0,0.1557527]
[1739241369325,0.009,97628.0,97627.0,0.1547527]
[1739241369713,0.017,97628.0,97627.0,0.25725635]
[1739241369935,0.011,97628.0,97627.0,0.25725635]
[1739241370084,0.006,97628.0,97627.0,0.25725635]
[1739241370287,0.006,97628.0,97627.0,0.27925635]
[1739241370474,0.006,97628.0,97627.0,0.43025635]
[1739241370879,0.00022387,97649.0,97648.0,0.153612]
[1739241371786,0.00022387,97649.0,97648.0,0.15463598]
[1739241372413,0.00022387,97649.0,97648.0,0.25713963]
[1739241372618,0.00022387,97649.0,97648.0,0.25611565]
[1739241373500,0.00922387,97649.0,97648.0,0.25611565]
[1739241373703,0.00622387,97649.0,97648.0,0.25611565]
[1739241373849,0.00022387,97649.0,97648.0,0.25911565]
[1739241374252,0.00122387,97649.0,97648.0,0.26511565]
[1739241374457,0.00122387,97649.0,97648.0,0.26811565]
[1739241374883,0.00122387,97649.0,97648.0,0.26511565]
[1739241375358,0.00122387,97649.0,97648.0,0.2752291]
[1739241375534,0.00022387,97649.0,97648.0,0.2662291]
[1739241375936,0.00022387,97649.0,97648.0,0.2712291]
[1739241376280,0.00022387,97649.0,97648.0,0.2972291]
[1739241376498,0.00022387,97649.0,97648.0,0.2992291]
[1739241376683,0.00022387,97649.0,97648.0,0.4582291]
[1739241377208,0.00022387,97649.0,97648.0,0.4492291]
[1739241377358,0.00022387,97649.0,97648.0,0.4532291]
[1739241377558,0.00022387,97649.0,97648.0,0.4592291]
[1739241377968,0.00122387,97649.0,97648.0,0.4652291]
[1739241378901,0.00122387,97649.0,97648.0,0.4552291]
[1739241379062,0.00122387,97649.0,97648.0,0.4702291]
[1739241380081,0.00122387,97649.0,97648.0,0.4602291]
[1739241380292,0.00122387,97649.0,97648.0,0.4702291]
[1739241381779,0.00122387,97649.0,97648.0,0.4602291]
[1739241382182,0.00122387,97649.0,97648.0,0.4452291]
[1739241382367,0.00022387,97649.0,97648.0,0.4392291]
[1739241382568,0.00022387,97649.0,97648.0,0.4542291]
[1739241382791,0.00022387,97649.0,97648.0,0.4602291]
[1739241382993,0.00022387,97649.0,97648.0,0.4702291]
[1739241383202,0.00022387,97649.0,97648.0,0.4372291]
[1739241383408,0.00022387,97649.0,97648.0,0.4222291]
[1739241383610,0.00022387,97649.0,97648.0,0.31372545]
[1739241383809,0.00022387,97649.0,97648.0,0.33472545]
[1739241384301,0.00022387,97649.0,97648.0,0.31372545]
[1739241384500,0.00022387,97649.0,97648.0,0.31572545]
[1739241385724,0.00022387,97649.0,97648.0,0.31972545]
[1739241385929,0.00022387,97649.0,97648.0,0.32172545]
[1739241386127,0.00022387,97649.0,97648.0,0.17172545]
[1739241386543,0.01577595,97649.0,97648.0,0.17172545]
[1739241386774,0.00022387,97649.0,97648.0,0.17172545]
[1739241386937,0.0157778,97649.0,97648.0,0.17172545]
[1739241387119,0.00022387,97649.0,97648.0,0.17172545]
[1739241387323,0.0157778,97649.0,97648.0,0.17172545]
[1739241387524,0.00022387,97649.0,97648.0,0.161612]
[1739241387984,0.0157778,97649.0,97648.0,0.161612]
[1739241388148,0.00022387,97649.0,97648.0,0.161612]
[1739241388347,0.0157778,97649.0,97648.0,0.161612]
[1739241388580,0.00022387,97649.0,97648.0,0.161612]
[1739241388726,0.01577756,97649.0,97648.0,0.153612]
[1739241388938,0.00022387,97649.0,97648.0,0.155612]
[1739241389139,0.01577756,97649.0,97648.0,0.155612]
[1739241389339,0.01577756,97649.0,97648.0,0.1557186]
[1739241391801,0.01577756,97649.0,97648.0,0.25822225]
[1739241392206,0.00022387,97649.0,97648.0,0.25822225]
[1739241392811,0.00022387,97649.0,97648.0,0.1557186]
[1739241395794,0.00022387,97649.0,97648.0,0.28224622]
[1739241396110,0.00022387,97649.0,97648.0,0.43122225]
[1739241396807,8.7e-07,97649.0,97648.0,0.45122225]
[1739241397629,8.7e-07,97649.0,97648.0,0.44922225]
[1739241398037,8.7e-07,97649.0,97648.0,0.45722225]
[1739241398457,8.7e-07,97649.0,97648.0,0.45222225]
[1739241398660,8.7e-07,97649.0,97648.0,0.44222225]
[1739241398877,8.7e-07,97649.0,97648.0,0.45422225]
[1739241399087,8.7e-07,97649.0,97648.0,0.47022225]
[1739241407598,8.7e-07,97649.0,97648.0,0.45522225]
[1739241407772,8.7e-07,97649.0,97648.0,0.47022225]
[1739241408172,8.7e-07,97649.0,97648.0,0.46422225]
[1739241408508,8.7e-07,97649.0,97648.0,0.47022225]
[1739241412982,8.7e-07,97649.0,97648.0,1.00432225]
[1739241421474,8.7e-07,97649.0,97648.0,0.97132225]
[1739241423804,8.7e-07,97649.0,97648.0,0.99432225]
[1739241423991,8.7e-07,97649.0,97648.0,1.00432225]
[1739241424919,8.7e-07,97649.0,97648.0,1.35759154]
[1739241425142,6.9e-07,97654.0,97653.0,0.336605]
[1739241425319,6.9e-07,97654.0,97653.0,0.43910865]
[1739241426694,6.9e-07,97654.0,97653.0,0.49778392]
[1739241427519,6.9e-07,97654.0,97653.0,0.48578392]
[1739241427958,6.9e-07,97654.0,97653.0,0.50078392]
[1739241428762,6.9e-07,97654.0,97653.0,0.49578392]
[1739241428934,6.9e-07,97654.0,97653.0,0.50278392]
[1739241429137,6.9e-07,97654.0,97653.0,0.49578392]
[1739241429341,0.0456,97680.0,97679.0,0.153564]
[1739241429544,0.04572298,97680.0,97679.0,0.27906765]
[1739241429743,0.06126542,97680.0,97679.0,0.27906765]
[1739241429907,0.04572298,97680.0,97679.0,0.27906765]
[1739241431367,0.04572298,97680.0,97679.0,0.28706765]
[1739241432989,0.04572298,97680.0,97679.0,0.29006765]
[1739241433167,0.04572298,97680.0,97679.0,0.31046691]
[1739241433465,0.04572298,97680.0,97679.0,0.29006765]
[1739241434717,0.04572298,97680.0,97679.0,0.26706765]
[1739241435497,0.04594685,97680.0,97679.0,0.26706765]
[1739241436059,0.04594685,97680.0,97679.0,0.26406765]
[1739241437056,0.04594685,97680.0,97679.0,0.25906765]
[1739241437288,0.04594685,97680.0,97679.0,0.28206765]
[1739241437503,0.00034685,97680.0,97679.0,0.28706765]
[1739241437896,0.00034685,97680.0,97679.0,0.27906765]
[1739241438332,0.00034685,97680.0,97679.0,0.28006765]
[1739241438739,0.00034685,97680.0,97679.0,0.27906765]
[1739241439152,0.00034685,97680.0,97679.0,0.28706765]
[1739241440150,0.00034685,97680.0,97679.0,0.29006765]
[1739241440514,0.00034685,97680.0,97679.0,0.30008426]
[1739241442323,0.00034685,97680.0,97679.0,0.45008426]
[1739241446733,0.3,97700.0,97690.0,0.15]
[1739241446949,0.3,97700.0,97699.0,0.176532]
[1739241447163,0.3,97700.0,97699.0,0.27903565]
[1739241448691,0.3,97700.0,97699.0,0.28703565]
[1739241449154,0.3,97700.0,97699.0,0.27903565]
[1739241449363,0.3,97700.0,97699.0,0.28703565]
[1739241450097,0.28857975,97700.0,97699.0,0.29003565]
[1739241450524,0.30416431,97700.0,97699.0,0.29227265]
[1739241450953,0.30416431,97700.0,97699.0,0.30127265]
[1739241451618,0.30416431,97700.0,97699.0,0.29227265]
[1739241451816,0.30416431,97700.0,97699.0,0.45427265]
[1739241452061,0.30416431,97700.0,97699.0,0.47516475]
[1739241452450,0.30416431,97700.0,97699.0,0.47216475]
[1739241452847,0.30416431,97700.0,97699.0,0.47716475]
[1739241453053,0.30416431,97700.0,97699.0,0.47216475]
[1739241453453,0.30416431,97700.0,97699.0,0.47716475]
[1739241454220,0.30416431,97700.0,97699.0,0.46516475]
[1739241454424,0.30416431,97700.0,97699.0,0.80076475]
[1739241454860,0.28857975,97700.0,97699.0,0.80076475]
[1739241461044,0.28857975,97700.0,97699.0,0.80087135]
[1739241461980,0.28880362,97700.0,97699.0,0.80087135]
[1739241464612,0.41250362,97700.0,97699.0,0.1828756]
[1739241464749,0.41250362,97700.0,97699.0,0.28537925]
[1739241464949,0.41250362,97700.0,97699.0,0.1828756]
[1739241464950,0.42811967,97700.0,97699.0,0.1828756]
[1739241465404,0.42811967,97700.0,97699.0,0.1688756]
[1739241465608,0.42811967,97700.0,97699.0,0.0031066]
[1739241466369,0.42811967,97700.0,97699.0,0.0041066]
[1739241466888,0.42811967,97700.0,97699.0,0.0011066]
[1739241467299,0.42811967,97700.0,97699.0,0.0041066]
[1739241468677,0.42811967,97700.0,97699.0,0.0011066]
[1739241468980,0.42811967,97700.0,97699.0,0.0031066]
[1739241469487,0.42811967,97700.0,97699.0,0.0021066]
[1739241470191,0.42811967,97700.0,97699.0,0.0001066]
[1739241470618,0.42811967,97700.0,97699.0,0.0021066]
[1739241471417,0.42811967,97700.0,97699.0,0.1556386]
[1739241475345,0.42811967,97700.0,97699.0,0.0021066]
[1739241476807,0.42811967,97700.0,97699.0,0.1556386]
[1739241486129,0.35161967,97700.0,97699.0,0.1556386]
[1739241486468,0.35161967,97700.0,97699.0,0.25814225]
[1739241493952,0.30441967,97700.0,97699.0,0.25814225]
[1739241496194,0.30441967,97700.0,97699.0,0.25849125]
[1739241509586,0.42771967,97700.0,97699.0,0.1559876]
[1739241513217,0.30441967,97700.0,97699.0,0.25849125]
[1739241519537,0.30441967,97700.0,97699.0,0.28149125]
[1739241524347,0.30441967,97700.0,97699.0,0.25849125]
[1739241525310,0.37981967,97700.0,97699.0,0.25849125]
[1739241527966,0.37981967,97700.0,97699.0,0.25649125]
[1739241528143,0.37981967,97700.0,97699.0,0.26849125]
[1739241529073,0.37981967,97700.0,97699.0,0.27349125]
[1739241534453,0.37981967,97700.0,97699.0,0.1709876]
[1739241534657,0.41782405,97700.0,97699.0,0.1709876]
[1739241534883,0.37981967,97700.0,97699.0,0.1709876]
[1739241535080,0.42801967,97700.0,97699.0,0.1709876]
[1739241538409,0.42801967,97700.0,97699.0,0.0174556]